[Event "NOR-ch Various 2019"]
[Site "Larvik"]
[Date "2019.07.09"]
[Round "5.1"]
[White "Stake-Larsen, Gunnar"]
[Black "Skogheim, Ole Morten"]
[Result "1-0"]
[ECO "D13"]
[WhiteElo "1976"]
[BlackElo "1968"]
[Annotator "NA"]
[PlyCount "193"]
[EventDate "2019.07.06"]
[EventType "swiss"]
[EventCountry "NOR"]
[SourceTitle "playchess.com"]
[Source "ChessBase"]
[SourceQuality "1"]
[TimeControl "40/5400+30:1800+30"]

1. d4 {[%emt 0:02:57]} d5 {[%emt 0:00:00]} 2. Bf4 {[%emt 0:00:24]} c5 {[%emt 0:00:00]} 3. c3 {[%emt 0:02:37]} Nc6 {[%emt 0:00:49]} 4. e3 {[%emt 0:00:37]} cxd4 {[%emt 0:00:20]} 5. cxd4 {[%emt 0:02:11]} Nf6 {[%emt 0:03:55]} 6. Nf3 {[%emt 0:04:37]} e6 {[%emt 0:05:33]} 7. Nc3 {[%emt 0:01:32]} a6 {[%emt 0:00:16]} 8. Bd3 {[%emt 0:01:00]} Nh5 {[%emt 0:06:57]} 9. Bg5 {[%emt 0:04:16]} Be7 {[%emt 0:00:53]} 10. Bxe7 {[%emt 0:01:16]} Nxe7 {[%emt 0:02:21]} 11. Ne5 {[%emt 0:03:14]} Nf6 {[%emt 0:00:21]} 12. O-O {[%emt 0:00:29]} O-O {[%emt 0:05:34]} 13. Rc1 {[%emt 0:04:56]} b5 {[%emt 0:01:29]} 14. Ne2 {[%emt 0:09:14]} Bb7 {[%emt 0:06:49]} 15. Ng3 {[%emt 0:02:54]} Rc8 {[%emt 0:08:21]} 16. f3 {[%emt 0:05:41]} Nd7 {[%emt 0:03:46]} 17. Rxc8 {[%emt 0:01:45]} Qxc8 {[%emt 0:00:56]} 18. Nxd7 {[%emt 0:00:23]} Qxd7 {[%emt 0:00:13]} 19. Qd2 {[%emt 0:00:33]} f6 {[%emt 0:05:20]} 20. Rc1 {[%emt 0:01:53]} Rc8 {[%emt 0:00:54]} 21. Rxc8+ {[%emt 0:01:44]} Qxc8 {[%emt 0:01:42]} 22. Qc2 {[%emt 0:00:42]} Qxc2 {[%emt 0:01:45]} 23. Bxc2 {[%emt 0:00:04]} Nc6 {[%emt 0:00:33]} 24. Kf2 {[%emt 0:01:57]} Nb4 {[%emt 0:03:54]} 25. Bb1 {[%emt 0:00:50]} a5 {[%emt 0:00:04]} 26. a3 {[%emt 0:00:34]} Nc6 {[%emt 0:00:12]} 27. Bd3 {[%emt 0:03:34]} b4 {[%emt 0:01:28]} 28. Ne2 {[%emt 0:01:40]} Kf7 {[%emt 0:01:20]} 29. Ke1 {[%emt 0:00:46]} h6 {[%emt 0:02:15]} 30. Kd2 {[%emt 0:00:53]} Ke7 {[%emt 0:01:02]} 31. Kc2 {[%emt 0:04:07]} Kd6 {[%emt 0:04:27]} 32. Kb3 {[%emt 0:01:45]} bxa3 {[%emt 0:01:41]} 33. bxa3 {[%emt 0:00:30]} Kc7 {[%emt 0:02:52]} 34. Nf4 {[%emt 0:15:19]} e5 {[%emt 0:04:40]} 35. Nxd5+ {[%emt 0:02:05]} Kd6 {[%emt 0:00:11]} 36. Nb6 {[%emt 0:01:44]} exd4 {[%emt 0:01:47]} 37. exd4 {[%emt 0:03:19]} Nxd4+ {[%emt 0:00:26]} 38. Ka4 {[%emt 0:03:10]} Kc5 {[%emt 0:12:16]} 39. Nd7+ {[%emt 0:06:15]} Kd6 {[%emt 0:01:03]} 40. Nf8 {[%emt 0:00:36]} Bc6+ {[%emt 0:06:22]} 41. Kxa5 {[%emt 0:32:11]} Kc5 {[%emt 0:30:12]} 42. Ka6 {[%emt 0:02:43]} Be8 {[%emt 0:00:00]} 43. Kb7 {[%emt 0:00:00]} Kd6 {[%emt 0:00:00]} 44. Ng6 {[%emt 0:00:00]} Ne6 {[%emt 0:00:00]} 45. Bc2 {[%emt 0:00:00]} Kc5 {[%emt 0:00:00]} 46. Ne7 {[%emt 0:00:00]} Nd4 {[%emt 0:00:00]} 47. Bd3 {[%emt 0:00:00]} Bd7 {[%emt 0:00:00]} 48. Kc7 {[%emt 0:00:00]} Be6 {[%emt 0:00:00]} 49. Nc8 {[%emt 0:00:00]} Bb3 {[%emt 0:00:00]} 50. Kd8 {[%emt 0:00:00]} Ne6+ {[%emt 0:00:00]} 51. Ke7 {[%emt 0:00:00]} Nf4 {[%emt 0:00:00]} 52. Bf1 {[%emt 0:00:00]} Nd5+ {[%emt 0:00:00]} 53. Kf8 {[%emt 0:00:00]} g5 {[%emt 0:00:00]} 54. Kg7 {[%emt 0:00:00]} h5 {[%emt 0:00:00]} 55. Bd3 {[%emt 0:00:00]} Nf4 {[%emt 0:01:10]} 56. Be4 {[%emt 0:00:00]} Nd5 {[%emt 0:04:05]} 57. Bxd5 {[%emt 0:00:00]} Bxd5 {[%emt 0:00:04]} 58. Kxf6 {[%emt 0:00:00]} g4 {[%emt 0:00:28]} 59. fxg4 {[%emt 0:00:00]} hxg4 {[%emt 0:01:24]} 60. g3 {[%emt 0:00:00]} Kb5 {[%emt 0:00:36]} 61. Ke5 {[%emt 0:00:48]} Bb3 {[%emt 0:00:55]} 62. Kf4 {[%emt 0:00:46]} Ka4 {[%emt 0:00:13]} 63. Nd6 {[%emt 0:00:33]} Be6 {[%emt 0:00:40]} 64. Ne4 {[%emt 0:00:26]} Kxa3 {[%emt 0:00:32]} 65. Nf2 {[%emt 0:00:18]} Kb4 {[%emt 0:00:14]} 66. Nxg4 {[%emt 0:00:15]} Kc5 {[%emt 0:00:07]} 67. Nf6 {[%emt 0:01:15]} Kd6 {[%emt 0:00:12]} 68. Kg5 {[%emt 0:00:23]} Ke7 {[%emt 0:00:40]} 69. Kg6 {[%emt 0:00:25]} Kf8 {[%emt 0:00:07]} 70. Nh7+ {[%emt 0:01:01]} Kg8 {[%emt 0:00:19]} 71. Ng5 {[%emt 0:00:13]} Bb3 {[%emt 0:00:37]} 72. h4 {[%emt 0:00:21]} Bc2+ {[%emt 0:00:42]} 73. Kf6 {[%emt 0:00:19]} Bd1 {[%emt 0:00:36]} 74. Ne6 {[%emt 0:00:18]} Kh8 {[%emt 0:00:21]} 75. Kg5 {[%emt 0:00:28]} Bb3 {[%emt 0:00:16]} 76. Nf4 {[%emt 0:00:15]} Kh7 {[%emt 0:00:29]} 77. h5 {[%emt 0:00:33]} Bd1 {[%emt 0:01:04]} 78. h6 {[%emt 0:00:23]} Bf3 {[%emt 0:00:27]} 79. Nh5 {[%emt 0:00:50]} Bd1 {[%emt 0:00:38]} 80. Nf6+ {[%emt 0:01:01]} Kh8 {[%emt 0:00:12]} 81. Kh4 {[%emt 0:03:28]} Bc2 {[%emt 0:01:19]} 82. g4 {[%emt 0:00:14]} Bb1 {[%emt 0:00:22]} 83. g5 {[%emt 0:00:09]} Bc2 {[%emt 0:01:18]} 84. Kg3 {[%emt 0:00:30]} Bb1 {[%emt 0:00:23]} 85. Kf4 {[%emt 0:00:11]} Bc2 {[%emt 0:00:11]} 86. Ke5 {[%emt 0:00:30]} Bb1 {[%emt 0:00:16]} 87. Ne8 {[%emt 0:00:26]} Kh7 {[%emt 0:00:36]} 88. Kf6 {[%emt 0:00:18]} Bc2 {[%emt 0:00:47]} 89. Nd6 {[%emt 0:00:20]} Bg6 {[%emt 0:01:03]} 90. Nf5 {[%emt 0:01:58]} Be8 {[%emt 0:01:06]} 91. Nd4 {[%emt 0:00:21]} Bh5 {[%emt 0:00:45]} 92. Ne6 {[%emt 0:00:15]} Be8 {[%emt 0:00:35]} 93. Nf8+ {[%emt 0:00:13]} Kg8 {[%emt 0:01:09]} 94. g6 {[%emt 0:01:07]} Bxg6 {[%emt 0:01:16]} 95. Kxg6 {[%emt 0:01:24]} Kh8 {[%emt 0:00:17]} 96. Nd7 {[%emt 0:00:34]} Kg8 {[%emt 0:00:10]} 97. Ne5 {[%emt 0:00:11]} 1-0

[Event "NOR-ch Various 2019"]
[Site "Larvik"]
[Date "2019.07.09"]
[Round "5.2"]
[White "Hovden, Hans"]
[Black "Smeby, Ole"]
[Result "1/2-1/2"]
[ECO "A18"]
[WhiteElo "1810"]
[BlackElo "1887"]
[Annotator "NA"]
[PlyCount "50"]
[EventDate "2019.07.06"]
[EventType "swiss"]
[EventCountry "NOR"]
[SourceTitle "playchess.com"]
[Source "ChessBase"]
[SourceQuality "1"]
[TimeControl "40/5400+30:1800+30"]

1. c4 {[%emt 0:00:00]} Nf6 {[%emt 0:00:00]} 2. Nc3 {[%emt 0:00:00]} e6 {[%emt 0:00:06]} 3. e4 {[%emt 0:00:39]} d6 {[%emt 0:04:41]} 4. d4 {[%emt 0:04:18]} Be7 {[%emt 0:02:51]} 5. Nf3 {[%emt 0:01:00]} O-O {[%emt 0:00:12]} 6. Be2 {[%emt 0:01:05]} c5 {[%emt 0:02:22]} 7. O-O {[%emt 0:05:25]} cxd4 {[%emt 0:01:47]} 8. Nxd4 {[%emt 0:00:43]} e5 {[%emt 0:00:11]} 9. Nc2 {[%emt 0:01:59]} Nc6 {[%emt 0:00:40]} 10. b3 {[%emt 0:02:28]} Ne8 {[%emt 0:07:59]} 11. Ba3 {[%emt 0:10:01]} Be6 {[%emt 0:02:54]} 12. Ne3 {[%emt 0:10:40]} Nd4 {[%emt 0:00:56]} 13. Bb2 {[%emt 0:05:52]} Rc8 {[%emt 0:04:33]} 14. Nc2 {[%emt 0:01:09]} Nxe2+ {[%emt 0:02:16]} 15. Qxe2 {[%emt 0:00:16]} f5 {[%emt 0:01:38]} 16. f3 {[%emt 0:03:56]} Nf6 {[%emt 0:01:28]} 17. Rad1 {[%emt 0:03:27]} Qb6+ {[%emt 0:00:29]} 18. Qf2 {[%emt 0:01:57]} Qxf2+ {[%emt 0:01:44]} 19. Rxf2 {[%emt 0:00:41]} a6 {[%emt 0:02:16]} 20. exf5 {[%emt 0:02:34]} Bxf5 {[%emt 0:00:14]} 21. Ne3 {[%emt 0:01:40]} Be6 {[%emt 0:01:28]} 22. Ncd5 {[%emt 0:00:58]} Nxd5 {[%emt 0:01:33]} 23. Nxd5 {[%emt 0:00:06]} Bxd5 {[%emt 0:01:48]} 24. Rxd5 {[%emt 0:00:09]} Rc6 {[%emt 0:00:49]} 25. Rfd2 {[%emt 0:00:59]} Rf6 {[%emt 0:01:31]} 1/2-1/2

[Event "NOR-ch Various 2019"]
[Site "Larvik"]
[Date "2019.07.09"]
[Round "5.3"]
[White "Starli, Atle"]
[Black "Kristiansen, Oddvar"]
[Result "0-1"]
[ECO "E68"]
[WhiteElo "1526"]
[BlackElo "1479"]
[Annotator "NA"]
[PlyCount "152"]
[EventDate "2019.07.06"]
[EventType "swiss"]
[EventCountry "NOR"]
[SourceTitle "playchess.com"]
[Source "ChessBase"]
[SourceQuality "1"]
[TimeControl "40/5400+30:1800+30"]

1. d4 {[%emt 0:00:00]} Nf6 {[%emt 0:01:35]} 2. c4 {[%emt 0:00:00]} g6 {[%emt 0:01:41]} 3. g3 {[%emt 0:00:23]} Bg7 {[%emt 0:00:18]} 4. Bg2 {[%emt 0:00:12]} d6 {[%emt 0:03:08]} 5. Nf3 {[%emt 0:00:30]} c6 {[%emt 0:01:25]} 6. O-O {[%emt 0:00:44]} O-O {[%emt 0:01:00]} 7. Nc3 {[%emt 0:00:50]} Nbd7 {[%emt 0:01:00]} 8. e4 {[%emt 0:01:29]} e5 {[%emt 0:01:48]} 9. dxe5 {[%emt 0:04:14]} dxe5 {[%emt 0:00:19]} 10. Qc2 {[%emt 0:01:18]} Qc7 {[%emt 0:03:23]} 11. b3 {[%emt 0:00:00]} Re8 {[%emt 0:01:26]} 12. Ba3 {[%emt 0:01:39]} Bf8 {[%emt 0:04:44]} 13. Bxf8 {[%emt 0:02:04]} Nxf8 {[%emt 0:00:21]} 14. c5 {[%emt 0:04:22]} Ne6 {[%emt 0:05:16]} 15. b4 {[%emt 0:01:50]} Nd4 {[%emt 0:01:52]} 16. Nxd4 {[%emt 0:04:02]} exd4 {[%emt 0:00:10]} 17. Ne2 {[%emt 0:01:07]} Rd8 {[%emt 0:03:58]} 18. Rad1 {[%emt 0:01:48]} d3 {[%emt 0:11:09]} 19. Rxd3 {[%emt 0:00:46]} Rxd3 {[%emt 0:04:04]} 20. Qxd3 {[%emt 0:00:22]} Be6 {[%emt 0:00:25]} 21. a3 {[%emt 0:01:38]} Rd8 {[%emt 0:00:44]} 22. Qc3 {[%emt 0:00:35]} Qe7 {[%emt 0:01:04]} 23. f4 {[%emt 0:05:25]} Nh5 {[%emt 0:03:51]} 24. Nd4 {[%emt 0:04:31]} Bc8 {[%emt 0:03:38]} 25. f5 {[%emt 0:02:42]} Qe5 {[%emt 0:03:05]} 26. Ne2 {[%emt 0:01:50]} f6 {[%emt 0:03:52]} 27. Qc4+ {[%emt 0:04:18]} Kf8 {[%emt 0:01:02]} 28. g4 {[%emt 0:06:05]} Ng7 {[%emt 0:02:39]} 29. h4 {[%emt 0:05:37]} gxf5 {[%emt 0:03:43]} 30. gxf5 {[%emt 0:01:18]} Nh5 {[%emt 0:04:31]} 31. Qc1 {[%emt 0:00:23]} Kg7 {[%emt 0:05:02]} 32. Rd1 {[%emt 0:03:58]} Rxd1+ {[%emt 0:07:35]} 33. Qxd1 {[%emt 0:00:17]} Qb2 {[%emt 0:03:07]} 34. Bf3 {[%emt 0:03:36]} Kh6 {[%emt 0:02:14]} 35. Bxh5 {[%emt 0:05:51]} Kxh5 {[%emt 0:03:20]} 36. Nd4+ {[%emt 0:01:59]} Kh6 {[%emt 0:01:14]} 37. Nc2 {[%emt 0:04:26]} Qe5 {[%emt 0:00:44]} 38. Qf3 {[%emt 0:01:38]} Bd7 {[%emt 0:00:31]} 39. Ne3 {[%emt 0:01:07]} Kg7 {[%emt 0:01:38]} 40. Qg4+ {[%emt 0:05:25]} Kf8 {[%emt 0:00:21]} 41. h5 {[%emt 0:32:36]} Be8 {[%emt 0:32:08]} 42. h6 {[%emt 0:00:36]} Bf7 {[%emt 0:01:31]} 43. Qg7+ {[%emt 0:06:31]} Ke8 {[%emt 0:00:11]} 44. Kf2 {[%emt 0:05:16]} Qf4+ {[%emt 0:01:55]} 45. Ke2 {[%emt 0:01:14]} Qe5 {[%emt 0:02:12]} 46. Qxh7 {[%emt 0:01:26]} Qxe4 {[%emt 0:00:12]} 47. Qh8+ {[%emt 0:02:43]} Ke7 {[%emt 0:00:32]} 48. Qg7 {[%emt 0:00:50]} Ke8 {[%emt 0:01:23]} 49. Qxf6 {[%emt 0:00:00]} Bc4+ {[%emt 0:00:00]} 50. Kf2 {[%emt 0:00:00]} Qf4+ {[%emt 0:00:00]} 51. Kg2 {[%emt 0:00:00]} Qxe3 {[%emt 0:00:00]} 52. Qh8+ {[%emt 0:00:00]} Ke7 {[%emt 0:00:00]} 53. f6+ {[%emt 0:00:00]} Kd7 {[%emt 0:01:16]} 54. Qg7+ {[%emt 0:00:50]} Kc8 {[%emt 0:00:00]} 55. Qf8+ {[%emt 0:00:00]} Kd7 {[%emt 0:00:00]} 56. Qe7+ {[%emt 0:00:00]} Qxe7 {[%emt 0:00:05]} 57. fxe7 {[%emt 0:00:20]} Bd3 {[%emt 0:01:40]} 58. Kg3 {[%emt 0:01:06]} Kxe7 {[%emt 0:00:17]} 59. Kg4 {[%emt 0:01:40]} Kf6 {[%emt 0:01:14]} 60. Kf4 {[%emt 0:00:40]} Kg6 {[%emt 0:00:19]} 61. Ke5 {[%emt 0:02:44]} b5 {[%emt 0:00:19]} 62. Kd6 {[%emt 0:00:00]} Be4 {[%emt 0:00:22]} 63. Kc7 {[%emt 0:00:36]} Kxh6 {[%emt 0:02:15]} 64. Kb7 {[%emt 0:00:00]} Kg6 {[%emt 0:00:09]} 65. Kxa7 {[%emt 0:00:00]} Kf6 {[%emt 0:00:46]} 66. Kb6 {[%emt 0:00:00]} Ke6 {[%emt 0:00:10]} 67. Ka5 {[%emt 0:00:00]} Kd5 {[%emt 0:00:20]} 68. a4 {[%emt 0:00:00]} Bd3 {[%emt 0:00:14]} 69. axb5 {[%emt 0:00:00]} Bxb5 {[%emt 0:00:15]} 70. Kb6 {[%emt 0:00:00]} Kc4 {[%emt 0:00:05]} 71. Ka5 {[%emt 0:00:31]} Kb3 {[%emt 0:01:05]} 72. Kb6 {[%emt 0:00:00]} Kxb4 {[%emt 0:00:48]} 73. Kc7 {[%emt 0:00:00]} Kxc5 {[%emt 0:01:13]} 74. Kb7 {[%emt 0:00:00]} Ba4 {[%emt 0:00:04]} 75. Ka6 {[%emt 0:00:00]} Kb4 {[%emt 0:00:08]} 76. Kb6 {[%emt 0:00:00]} c5 {[%emt 0:00:06]} 0-1

[Event "NOR-ch Various 2019"]
[Site "Larvik"]
[Date "2019.07.09"]
[Round "5.4"]
[White "Kyrkjebo, Eirik"]
[Black "Mottang, Harald"]
[Result "1-0"]
[ECO "B31"]
[WhiteElo "1598"]
[BlackElo "1559"]
[Annotator "NA"]
[PlyCount "47"]
[EventDate "2019.07.06"]
[EventType "swiss"]
[EventCountry "NOR"]
[SourceTitle "playchess.com"]
[Source "ChessBase"]
[SourceQuality "1"]
[TimeControl "40/5400+30:1800+30"]

1. e4 {[%emt 0:00:00]} c5 {[%emt 0:00:00]} 2. Nf3 {[%emt 0:00:00]} Nc6 {[%emt 0:00:05]} 3. Bb5 {[%emt 0:00:14]} g6 {[%emt 0:00:28]} 4. O-O {[%emt 0:00:41]} Bg7 {[%emt 0:00:09]} 5. Nc3 {[%emt 0:01:36]} Nf6 {[%emt 0:05:01]} 6. e5 {[%emt 0:02:31]} Ng4 {[%emt 0:00:34]} 7. Bxc6 {[%emt 0:00:18]} dxc6 {[%emt 0:00:39]} 8. Qe2 {[%emt 0:02:57]} O-O {[%emt 0:03:31]} 9. h3 {[%emt 0:00:23]} Nh6 {[%emt 0:00:59]} 10. Ne4 {[%emt 0:05:18]} b6 {[%emt 0:01:31]} 11. a4 {[%emt 0:00:26]} a5 {[%emt 0:02:05]} 12. d3 {[%emt 0:02:05]} Nf5 {[%emt 0:01:41]} 13. c3 {[%emt 0:02:11]} Qc7 {[%emt 0:06:13]} 14. g4 {[%emt 0:04:08]} Nh6 {[%emt 0:02:00]} 15. Bf4 {[%emt 0:02:51]} f5 {[%emt 0:16:08]} 16. exf6 {[%emt 0:09:31]} Qxf4 {[%emt 0:00:31]} 17. fxg7 {[%emt 0:00:18]} Kxg7 {[%emt 0:02:08]} 18. Neg5 {[%emt 0:01:12]} Bxg4 {[%emt 0:03:53]} 19. Qxe7+ {[%emt 0:01:53]} Nf7 {[%emt 0:02:15]} 20. hxg4 {[%emt 0:03:44]} Rae8 {[%emt 0:01:31]} 21. Ne6+ {[%emt 0:00:59]} Kg8 {[%emt 0:01:47]} 22. Qxf8+ {[%emt 0:00:31]} Rxf8 {[%emt 0:00:28]} 23. Nxf4 {[%emt 0:00:16]} Nd6 {[%emt 0:03:02]} 24. Nxg6 {[%emt 0:07:54]} 1-0

[Event "NOR-ch Various 2019"]
[Site "Larvik"]
[Date "2019.07.09"]
[Round "5.5"]
[White "Runde, Hans Arild"]
[Black "Vigdal, Per Kr"]
[Result "0-1"]
[ECO "B24"]
[WhiteElo "1876"]
[BlackElo "1926"]
[Annotator "NA"]
[PlyCount "140"]
[EventDate "2019.07.06"]
[EventType "swiss"]
[EventCountry "NOR"]
[SourceTitle "playchess.com"]
[Source "ChessBase"]
[SourceQuality "1"]
[TimeControl "40/5400+30:1800+30"]

1. e4 {[%emt 0:00:00]} c5 {[%emt 0:00:00]} 2. Nc3 {[%emt 0:00:00]} Nc6 {[%emt 0:01:05]} 3. g3 {[%emt 0:00:08]} Nf6 {[%emt 0:01:06]} 4. Bg2 {[%emt 0:00:14]} d6 {[%emt 0:02:03]} 5. Nge2 {[%emt 0:03:06]} e5 {[%emt 0:05:54]} 6. h3 {[%emt 0:01:13]} Rb8 {[%emt 0:04:15]} 7. a4 {[%emt 0:02:52]} Be7 {[%emt 0:01:45]} 8. d3 {[%emt 0:00:40]} a6 {[%emt 0:02:26]} 9. O-O {[%emt 0:09:37]} b5 {[%emt 0:00:21]} 10. axb5 {[%emt 0:00:25]} axb5 {[%emt 0:00:16]} 11. f4 {[%emt 0:09:15]} O-O {[%emt 0:03:08]} 12. Be3 {[%emt 0:10:23]} Nd4 {[%emt 0:14:30]} 13. b3 {[%emt 0:20:49]} b4 {[%emt 0:04:51]} 14. Bxd4 {[%emt 0:01:59]} cxd4 {[%emt 0:00:27]} 15. Nb1 {[%emt 0:04:15]} Qc7 {[%emt 0:05:20]} 16. fxe5 {[%emt 0:01:07]} dxe5 {[%emt 0:00:24]} 17. Nd2 {[%emt 0:00:23]} Be6 {[%emt 0:03:54]} 18. Ra2 {[%emt 0:08:05]} Nd7 {[%emt 0:01:02]} 19. g4 {[%emt 0:01:48]} Bg5 {[%emt 0:02:48]} 20. Ng3 {[%emt 0:00:58]} Ra8 {[%emt 0:00:41]} 21. Rxa8 {[%emt 0:02:56]} Rxa8 {[%emt 0:00:41]} 22. Nc4 {[%emt 0:00:47]} Ra2 {[%emt 0:04:27]} 23. Qe2 {[%emt 0:02:25]} Nb6 {[%emt 0:02:06]} 24. Rb1 {[%emt 0:00:56]} g6 {[%emt 0:02:03]} 25. Qd1 {[%emt 0:01:19]} Nxc4 {[%emt 0:02:16]} 26. dxc4 {[%emt 0:02:30]} Qa7 {[%emt 0:01:24]} 27. Qd3 {[%emt 0:02:12]} Ra1 {[%emt 0:01:57]} 28. Rxa1 {[%emt 0:00:30]} Qxa1+ {[%emt 0:00:01]} 29. Bf1 {[%emt 0:01:34]} Qe1 {[%emt 0:02:36]} 30. Kg2 {[%emt 0:01:16]} Bf4 {[%emt 0:02:29]} 31. Nh1 {[%emt 0:04:40]} Be3 {[%emt 0:02:56]} 32. Qe2 {[%emt 0:00:40]} Qh4 {[%emt 0:00:33]} 33. Qf3 {[%emt 0:02:25]} Bf4 {[%emt 0:01:07]} 34. Nf2 {[%emt 0:00:42]} h5 {[%emt 0:01:35]} 35. Be2 {[%emt 0:02:34]} Be3 {[%emt 0:02:33]} 36. Qg3 {[%emt 0:01:08]} Qf6 {[%emt 0:04:39]} 37. Nd3 {[%emt 0:00:56]} Bf4 {[%emt 0:01:36]} 38. Nxf4 {[%emt 0:00:51]} exf4 {[%emt 0:00:01]} 39. Qf3 {[%emt 0:00:27]} hxg4 {[%emt 0:00:59]} 40. hxg4 {[%emt 0:00:12]} g5 {[%emt 0:00:53]} 41. Qh3 {[%emt 0:05:11]} Kg7 {[%emt 0:00:00]} 42. Bd3 {[%emt 0:06:44]} Qe5 {[%emt 0:01:45]} 43. Kf3 {[%emt 0:00:51]} f6 {[%emt 0:00:26]} 44. Qh5 {[%emt 0:04:11]} Bd7 {[%emt 0:00:24]} 45. Qh1 {[%emt 0:03:21]} Bc6 {[%emt 0:00:49]} 46. Qh5 {[%emt 0:02:31]} Qa5 {[%emt 0:00:24]} 47. Kf2 {[%emt 0:00:55]} Qe5 {[%emt 0:01:14]} 48. Kf3 {[%emt 0:03:49]} Be8 {[%emt 0:00:02]} 49. Qh1 {[%emt 0:00:24]} Qa5 {[%emt 0:00:26]} 50. Qg1 {[%emt 0:00:47]} Qe5 {[%emt 0:00:54]} 51. Qh1 {[%emt 0:01:12]} Bg6 {[%emt 0:00:34]} 52. Kf2 {[%emt 0:01:37]} Qb8 {[%emt 0:03:26]} 53. Qa1 {[%emt 0:03:21]} Qh8 {[%emt 0:02:46]} 54. Qa7+ {[%emt 0:01:21]} Bf7 {[%emt 0:00:02]} 55. Qd7 {[%emt 0:00:22]} Qh2+ {[%emt 0:00:42]} 56. Ke1 {[%emt 0:00:46]} Qg1+ {[%emt 0:01:15]} 57. Ke2 {[%emt 0:00:55]} Qe3+ {[%emt 0:00:47]} 58. Kd1 {[%emt 0:01:21]} f3 {[%emt 0:03:10]} 59. Qf5 {[%emt 0:00:46]} Bg6 {[%emt 0:02:28]} 60. Qd7+ {[%emt 0:00:03]} Kh6 {[%emt 0:00:41]} 61. Qc8 {[%emt 0:00:20]} Kg7 {[%emt 0:02:00]} 62. Qd7+ {[%emt 0:00:29]} Bf7 {[%emt 0:00:06]} 63. Qf5 {[%emt 0:00:07]} Qg1+ {[%emt 0:00:56]} 64. Kd2 {[%emt 0:00:06]} f2 {[%emt 0:00:49]} 65. Ke2 {[%emt 0:01:44]} Qe1+ {[%emt 0:00:09]} 66. Kf3 {[%emt 0:00:03]} f1=Q+ {[%emt 0:00:51]} 67. Bxf1 {[%emt 0:00:08]} Qxf1+ {[%emt 0:00:06]} 68. Kg3 {[%emt 0:00:22]} Qg1+ {[%emt 0:01:11]} 69. Kf3 {[%emt 0:00:37]} Qd1+ {[%emt 0:00:44]} 70. Kg3 {[%emt 0:01:13]} Qxc2 {[%emt 0:00:36]} 0-1

[Event "NOR-ch Various 2019"]
[Site "Larvik"]
[Date "2019.07.09"]
[Round "5.6"]
[White "Engeset, Audun"]
[Black "Hoem, Audun"]
[Result "0-1"]
[ECO "B39"]
[WhiteElo "1944"]
[BlackElo "1807"]
[Annotator "NA"]
[PlyCount "52"]
[EventDate "2019.07.06"]
[EventType "swiss"]
[EventCountry "NOR"]
[SourceTitle "playchess.com"]
[Source "ChessBase"]
[SourceQuality "1"]
[TimeControl "40/5400+30:1800+30"]

1. e4 {[%emt 0:00:00]} c5 {[%emt 0:00:00]} 2. Nf3 {[%emt 0:00:00]} g6 {[%emt 0:00:00]} 3. d4 {[%emt 0:00:44]} cxd4 {[%emt 0:00:00]} 4. Nxd4 {[%emt 0:00:10]} Nc6 {[%emt 0:00:03]} 5. c4 {[%emt 0:00:37]} Bg7 {[%emt 0:00:14]} 6. Be3 {[%emt 0:00:22]} Nf6 {[%emt 0:00:35]} 7. Nc3 {[%emt 0:00:36]} Ng4 {[%emt 0:00:26]} 8. Qxg4 {[%emt 0:02:14]} Nxd4 {[%emt 0:00:20]} 9. Bxd4 {[%emt 0:00:20]} Bxd4 {[%emt 0:00:28]} 10. Qg3 {[%emt 0:03:00]} Qb6 {[%emt 0:24:58]} 11. Rb1 {[%emt 0:07:51]} Qb4 {[%emt 0:07:24]} 12. Qd3 {[%emt 0:02:17]} Bxc3+ {[%emt 0:08:13]} 13. bxc3 {[%emt 0:00:10]} Qa5 {[%emt 0:01:57]} 14. Qd2 {[%emt 0:05:14]} d6 {[%emt 0:07:20]} 15. c5 {[%emt 0:01:49]} Qxc5 {[%emt 0:07:33]} 16. Bb5+ {[%emt 0:00:23]} Kf8 {[%emt 0:00:44]} 17. Qh6+ {[%emt 0:06:31]} Kg8 {[%emt 0:00:16]} 18. O-O {[%emt 0:02:56]} Be6 {[%emt 0:04:56]} 19. Be2 {[%emt 0:05:33]} b6 {[%emt 0:05:06]} 20. Rb5 {[%emt 0:11:23]} Qc6 {[%emt 0:03:31]} 21. f4 {[%emt 0:18:16]} Qxe4 {[%emt 0:08:55]} 22. Bf3 {[%emt 0:01:27]} Qe3+ {[%emt 0:00:18]} 23. Kh1 {[%emt 0:00:25]} Rc8 {[%emt 0:00:27]} 24. Rg5 {[%emt 0:04:09]} Rxc3 {[%emt 0:02:29]} 25. f5 {[%emt 0:06:59]} Rc1 {[%emt 0:04:44]} 26. Bd1 {[%emt 0:00:53]} Qd3 {[%emt 0:01:48]} 0-1

[Event "NOR-ch Various 2019"]
[Site "Larvik"]
[Date "2019.07.09"]
[Round "5.7"]
[White "Grondahl, David A"]
[Black "Nergard, Ole-Kristian"]
[Result "1-0"]
[ECO "B31"]
[WhiteElo "1730"]
[BlackElo "1505"]
[Annotator "NA"]
[PlyCount "41"]
[EventDate "2019.07.06"]
[EventType "swiss"]
[EventCountry "NOR"]
[SourceTitle "playchess.com"]
[Source "ChessBase"]
[SourceQuality "1"]
[TimeControl "40/5400+30:1800+30"]

1. e4 {[%emt 0:00:00]} c5 {[%emt 0:00:00]} 2. Nc3 {[%emt 0:00:00]} Nc6 {[%emt 0:00:24]} 3. Bb5 {[%emt 0:00:00]} Nd4 {[%emt 0:01:11]} 4. Bc4 {[%emt 0:00:02]} g6 {[%emt 0:01:21]} 5. Nf3 {[%emt 0:01:59]} Bg7 {[%emt 0:01:42]} 6. O-O {[%emt 0:02:04]} e6 {[%emt 0:03:03]} 7. Nxd4 {[%emt 0:10:52]} cxd4 {[%emt 0:02:11]} 8. Nb5 {[%emt 0:02:33]} Qb6 {[%emt 0:04:15]} 9. a4 {[%emt 0:02:05]} a6 {[%emt 0:00:56]} 10. a5 {[%emt 0:01:37]} Qc5 {[%emt 0:01:37]} 11. b4 {[%emt 0:01:06]} Qc6 {[%emt 0:02:15]} 12. Na3 {[%emt 0:00:57]} Qxe4 {[%emt 0:03:03]} 13. Bd3 {[%emt 0:01:15]} Qd5 {[%emt 0:05:59]} 14. Nc4 {[%emt 0:00:16]} Qc6 {[%emt 0:07:26]} 15. Qe2 {[%emt 0:00:59]} Ne7 {[%emt 0:05:19]} 16. Ba3 {[%emt 0:03:58]} Nf5 {[%emt 0:19:10]} 17. Bxf5 {[%emt 0:11:29]} gxf5 {[%emt 0:00:26]} 18. b5 {[%emt 0:00:17]} axb5 {[%emt 0:01:54]} 19. Nd6+ {[%emt 0:00:07]} Kd8 {[%emt 0:05:25]} 20. Nxf7+ {[%emt 0:00:17]} Ke8 {[%emt 0:01:24]} 21. Qh5 {[%emt 0:01:58]} 1-0